fUSD/lending_fUSD_20250611
["ID","MTS","AMOUNT","RATE_DAILY","PERIOD"]
[365362736,1749618651982,-490.0,0.00016767,2]
[365362738,1749618651991,-490.0,0.00016767,2]
[365362740,1749618652000,-490.0,0.00016767,2]
[365362742,1749618652010,-490.0,0.00016767,2]
[365362744,1749618652019,-588.47,0.00016767,2]
[365362746,1749618652028,-490.0,0.00016767,2]
[365362748,1749618652036,-450.0,0.00016767,2]
[365362750,1749618652045,-490.0,0.00016767,2]
[365362751,1749618652054,-490.0,0.00016767,2]
[365362753,1749618652064,-490.0,0.00016767,2]
[365362755,1749618652073,-572.69713864,0.00016767,2]
[365362757,1749618652082,-490.0,0.00016767,2]
[365362759,1749618652091,-490.0,0.00016767,2]
[365362760,1749618652100,-490.0,0.00016767,2]
[365362761,1749618652109,-490.0,0.00016767,2]
[365362762,1749618652118,-490.0,0.00016767,2]
[365362763,1749618652128,-490.0,0.00016767,2]
[365362764,1749618652137,-490.0,0.00016767,2]
[365362765,1749618652147,-490.0,0.00016767,2]
[365362766,1749618652156,-418.48725925,0.00016767,2]
[365362767,1749618652166,-490.0,0.00016767,2]
[365362768,1749618652176,-490.0,0.00016767,2]
[365362769,1749618652189,-490.0,0.00016767,2]
[365362770,1749618652198,-470.0,0.00016767,2]
[365362771,1749618652208,-490.0,0.00016767,2]
[365362772,1749618652218,-470.0,0.00016767,2]
[365362773,1749618652230,-490.0,0.00016767,2]
[365362774,1749618652239,-816.77,0.00016767,2]
[365362775,1749618652251,-490.0,0.00016767,2]
[365362776,1749618652263,-490.0,0.00016767,2]
[365362777,1749618652273,-460.0,0.00016767,2]
[365362778,1749618652282,-490.0,0.00016767,2]
[365362779,1749618652292,-259.20776087,0.00016767,2]
[365362780,1749618652301,-490.0,0.00016767,2]
[365362781,1749618652311,-270.18775273,0.00016767,2]
[365362782,1749618652320,-490.0,0.00016767,2]
[365362783,1749618652330,-490.0,0.00016767,2]
[365362784,1749618652339,-490.0,0.00016767,2]
[365362785,1749618652349,-470.0,0.00016767,2]
[365362786,1749618652358,-382.29870903,0.00016767,2]
[365362787,1749618652368,-490.0,0.00016767,2]
[365362788,1749618652377,-490.0,0.00016767,2]
[365362789,1749618652387,-490.0,0.00016767,2]
[365362790,1749618652396,-459.80358356,0.00016767,2]
[365362791,1749618652405,-490.0,0.00016767,2]
[365362792,1749618652415,-492.50232703,0.00016767,2]
[365362793,1749618652424,-310.54471276,0.00016767,2]
[365362794,1749618652433,-420.0,0.00016767,2]
[365362795,1749618652443,-490.0,0.00016767,2]
[365362796,1749618652452,-490.0,0.00016767,2]
[365362797,1749618652462,-490.0,0.00016767,2]
[365362798,1749618652471,-490.0,0.00016767,2]
[365362799,1749618652480,-490.0,0.00016767,2]
[365362800,1749618652490,-490.0,0.00016767,2]
[365362801,1749618652501,-611.70384133,0.00016767,2]
[365362802,1749618652511,-471.858068,0.00016767,2]
[365362803,1749618652520,-490.0,0.00016767,2]
[365362804,1749618652529,-490.0,0.00016767,2]
[365362805,1749618652539,-490.0,0.00016767,2]
[365362806,1749618652548,-490.0,0.00016767,2]
[365362807,1749618652558,-332.13234028,0.00016767,2]
[365362808,1749618652567,-490.0,0.00016767,2]
[365362809,1749618652576,-490.0,0.00016767,2]
[365362810,1749618652586,-490.0,0.00016767,2]
[365362811,1749618652595,-490.0,0.00016767,2]
[365362812,1749618652603,-463.37674374,0.00016767,2]
[365362813,1749618652613,-490.0,0.00016767,2]
[365362814,1749618652621,-490.0,0.00016767,2]
[365362815,1749618652631,-490.0,0.00016767,2]
[365362816,1749618652640,-490.0,0.00016767,2]
[365362817,1749618652650,-531.44651185,0.00016767,2]
[365362818,1749618652658,-490.0,0.00016767,2]
[365362819,1749618652667,-490.0,0.00016767,2]
[365362820,1749618652677,-393.23510639,0.00016767,2]
[365362821,1749618652686,-532.06478221,0.00016767,2]
[365362822,1749618652695,-490.0,0.00016767,2]
[365362823,1749618652704,-490.0,0.00016767,2]
[365362824,1749618652714,-490.0,0.00016767,2]
[365362825,1749618652724,-490.0,0.00016767,2]
[365362826,1749618652734,-490.0,0.00016767,2]
[365362827,1749618652743,-450.0,0.00016767,2]
[365362828,1749618652758,-342.23937651,0.00016767,2]
[365362829,1749618652768,-490.0,0.00016767,2]
[365362830,1749618652778,-490.0,0.00016767,2]
[365362831,1749618652788,-490.0,0.00016767,2]
[365362832,1749618652799,-490.0,0.00016767,2]
[365362833,1749618652809,-490.0,0.00016767,2]
[365362834,1749618652819,-490.0,0.00016767,2]
[365362835,1749618652828,-490.0,0.00016767,2]
[365362836,1749618652837,-490.0,0.00016767,2]
[365362837,1749618652847,-490.0,0.00016767,2]
[365362838,1749618652857,-490.0,0.00016767,2]
[365362839,1749618652866,-490.0,0.00016767,2]
[365362840,1749618652876,-490.0,0.00016767,2]
[365362841,1749618652886,-436.6302793,0.00016767,2]
[365362842,1749618652896,-243.3368451,0.00016767,2]
[365362843,1749618652906,-490.0,0.00016767,2]
[365362844,1749618652915,-490.0,0.00016767,2]
[365362845,1749618652925,-490.0,0.00016767,2]
[365362846,1749618652935,-420.60623863,0.00016767,2]
[365362847,1749618652944,-490.0,0.00016767,2]
[365362848,1749618652954,-490.0,0.00016767,2]
[365362849,1749618652964,-490.0,0.00016767,2]
[365362850,1749618652974,-493.0,0.00016767,2]
[365362851,1749618652984,-490.0,0.00016767,2]
[365362852,1749618652994,-490.0,0.00016767,2]
[365362853,1749618653007,-490.0,0.00016767,2]
[365362854,1749618653017,-490.0,0.00016767,2]
[365362855,1749618653027,-490.0,0.00016767,2]
[365362856,1749618653036,-383.24697954,0.00016767,2]
[365362857,1749618653046,-490.0,0.00016767,2]
[365362858,1749618653055,-490.0,0.00016767,2]
[365362859,1749618653065,-490.0,0.00016767,2]
[365362860,1749618653075,-440.0,0.00016767,2]
[365362861,1749618653084,-490.0,0.00016767,2]
[365362862,1749618653094,-490.0,0.00016767,2]
[365362863,1749618653103,-490.0,0.00016767,2]
[365362864,1749618653113,-490.0,0.00016767,2]
[365362865,1749618653122,-490.0,0.00016767,2]
[365362866,1749618653131,-481.60323449,0.00016767,2]
[365362867,1749618653140,-490.0,0.00016767,2]
[365362868,1749618653150,-556.9048097,0.00016767,2]
[365362869,1749618653159,-510.02973362,0.00016767,2]
[365362870,1749618653168,-490.0,0.00016767,2]
[365362871,1749618653179,-490.0,0.00016767,2]
[365362872,1749618653192,-490.0,0.00016767,2]
[365362873,1749618653201,-490.0,0.00016767,2]
[365362874,1749618653212,-490.0,0.00016767,2]
[365362875,1749618653222,-516.37162379,0.00016767,2]
[365362876,1749618653232,-490.0,0.00016767,2]
[365362877,1749618653241,-490.0,0.00016767,2]
[365362878,1749618653251,-490.0,0.00016767,2]
[365362879,1749618653262,-490.0,0.00016767,2]
[365362880,1749618653272,-490.0,0.00016767,2]
[365362881,1749618653281,-490.0,0.00016767,2]
[365362882,1749618653290,-490.0,0.00016767,2]
[365362883,1749618653299,-449.62504337,0.00016767,2]
[365362884,1749618653308,-5120.11,0.00016767,2]
[365362885,1749618653317,-469.6949878,0.00016767,2]
[365362886,1749618653327,-490.0,0.00016767,2]
[365362887,1749618653336,-490.0,0.00016767,2]
[365362888,1749618653346,-490.0,0.00016767,2]
[365362889,1749618653357,-421.44299063,0.00016767,2]
[365362890,1749618653366,-514.78,0.00016767,2]
[365362891,1749618653377,-490.0,0.00016767,2]
[365362892,1749618653386,-490.0,0.00016767,2]
[365362893,1749618653395,-490.0,0.00016767,2]
[365362894,1749618653404,-490.0,0.00016767,2]
[365362895,1749618653413,-498.14,0.00016767,2]
[365362896,1749618653424,-490.0,0.00016767,2]
[365362897,1749618653433,-490.0,0.00016767,2]
[365362898,1749618653442,-490.0,0.00016767,2]
[365362899,1749618653451,-490.0,0.00016767,2]
[365362900,1749618653461,-490.0,0.00016767,2]
[365362901,1749618653470,-584.94,0.00016767,2]
[365362902,1749618653479,-242.13372963,0.00016767,2]
[365362903,1749618653488,-490.0,0.00016767,2]
[365362904,1749618653498,-490.0,0.00016767,2]
[365362905,1749618653509,-520.80450581,0.00016767,2]
[365362906,1749618653519,-490.0,0.00016767,2]
[365362907,1749618653528,-490.0,0.00016767,2]
[365362908,1749618653537,-490.0,0.00016767,2]
[365362909,1749618653547,-490.0,0.00016767,2]
[365362910,1749618653556,-294.85178952,0.00016767,2]
[365362911,1749618653565,-490.0,0.00016767,2]
[365362912,1749618653574,-490.0,0.00016767,2]
[365362913,1749618653583,-490.0,0.00016767,2]
[365362914,1749618653592,-490.0,0.00016767,2]
[365362915,1749618653601,-490.0,0.00016767,2]
[365362916,1749618653610,-497.19390263,0.00016767,2]
[365362917,1749618653619,-490.0,0.00016767,2]
[365362918,1749618653627,-490.0,0.00016767,2]
[365362919,1749618653636,-1532.14,0.00016767,2]
[365362920,1749618653646,-490.0,0.00016767,2]
[365362921,1749618653654,-490.0,0.00016767,2]
[365362922,1749618653663,-490.0,0.00016767,2]
[365362923,1749618653673,-490.0,0.00016767,2]
[365362924,1749618653682,-490.0,0.00016767,2]
[365362925,1749618653691,-490.0,0.00016767,2]
[365362926,1749618653701,-490.0,0.00016767,2]
[365362927,1749618653710,-490.0,0.00016767,2]
[365362928,1749618653719,-490.0,0.00016767,2]
[365362929,1749618653729,-359.83651073,0.00016767,2]
[365362930,1749618653738,-490.0,0.00016767,2]
[365362931,1749618653748,-490.0,0.00016767,2]
[365362932,1749618653759,-490.0,0.00016767,2]
[365362933,1749618653769,-490.0,0.00016767,2]
[365362934,1749618653778,-490.0,0.00016767,2]
[365362935,1749618653788,-490.0,0.00016767,2]
[365362936,1749618653797,-201.23350696,0.000169,2]
[365362937,1749618653807,-387.13671088,0.00016931,2]
[365362938,1749618653816,-490.0,0.00016931,2]
[365362939,1749618653825,-490.0,0.00016931,2]
[365362940,1749618653835,-490.0,0.00016931,2]
[365362941,1749618653844,-623.42922104,0.00016931,2]
[365362942,1749618653853,-490.0,0.00016931,2]
[365362943,1749618653862,-331.62906636,0.00016931,2]
[365362944,1749618653871,-470.0,0.00016931,2]
[365362945,1749618653880,-221.25185383,0.00016931,2]
[365362946,1749618653889,-490.0,0.00016931,2]
[365362947,1749618653899,-490.0,0.00016931,2]
[365362948,1749618653908,-490.0,0.00016931,2]
[365362949,1749618653917,-490.0,0.00016931,2]
[365362950,1749618653926,-460.0,0.00016931,2]
[365362951,1749618653935,-513.3634346,0.00016931,2]
[365362952,1749618653944,-490.0,0.00016931,2]
[365362953,1749618653953,-490.0,0.00016931,2]
[365362954,1749618653962,-490.0,0.00016931,2]
[365362955,1749618653971,-420.0,0.00016931,2]
[365362956,1749618653980,-370.15,0.00016931,2]
[365362957,1749618653989,-490.0,0.00016931,2]
[365362958,1749618653998,-441.54644032,0.00016931,2]
[365362959,1749618654009,-310.0,0.00016931,2]
[365362960,1749618654018,-490.0,0.00016931,2]
[365362961,1749618654027,-251.68610013,0.00016931,2]
[365362962,1749618654036,-490.0,0.00016931,2]
[365362963,1749618654045,-490.0,0.00016931,2]
[365362964,1749618654054,-490.0,0.00016931,2]
[365362965,1749618654063,-490.0,0.00016931,2]
[365362966,1749618654072,-450.0,0.00016931,2]
[365362967,1749618654081,-261.20561372,0.00016931,2]
[365362968,1749618654091,-490.0,0.00016931,2]
[365362969,1749618654100,-480.0,0.00016931,2]
[365362970,1749618654109,-490.0,0.00016931,2]
[365362971,1749618654118,-470.0,0.00016931,2]
[365362972,1749618654126,-460.0,0.00016931,2]
[365362973,1749618654135,-480.0,0.00016931,2]
[365362974,1749618654144,-532.29302799,0.00016931,2]
[365362975,1749618654154,-490.0,0.00016931,2]
[365362976,1749618654163,-490.0,0.00016931,2]
[365362977,1749618654172,-490.0,0.00016931,2]
[365362978,1749618654183,-490.0,0.00016931,2]
[365362979,1749618654196,-490.0,0.00016931,2]
[365362980,1749618654206,-480.0,0.00016931,2]
[365362981,1749618654215,-271.95134163,0.00016931,2]
[365362982,1749618654226,-520.84,0.00016931,2]
[365362983,1749618654235,-490.0,0.00016931,2]
[365362984,1749618654244,-480.0,0.00016931,2]
[365362985,1749618654255,-423.02076322,0.00016931,2]
[365362986,1749618654266,-490.0,0.00016931,2]
[365362987,1749618654276,-455.50062051,0.00016931,2]
[365362988,1749618654285,-490.0,0.00016931,2]
[365362989,1749618654294,-490.0,0.00016931,2]
[365362990,1749618654303,-483.6516932,0.00016931,2]
[365362991,1749618654312,-443.06501629,0.00016931,2]
[365362992,1749618654322,-355.65342271,0.00016931,2]
[365362993,1749618654330,-490.0,0.00016931,2]
[365362994,1749618654339,-490.0,0.00016931,2]
[365362995,1749618654348,-490.0,0.00016931,2]
[365362996,1749618654357,-402.98715018,0.00016931,2]
[365362997,1749618654366,-162.60561691,0.00016931,2]
[365362998,1749618654375,-406.98128477,0.00016931,2]
[365362999,1749618654384,-490.0,0.00016931,2]
[365363000,1749618654393,-490.0,0.00016931,2]
[365363001,1749618654402,-284.02741727,0.00016931,2]
[365363002,1749618654412,-490.0,0.00016931,2]
[365363003,1749618654420,-490.0,0.00016931,2]
[365363004,1749618654429,-438.72333312,0.00016931,2]
[365363005,1749618654438,-490.0,0.00016931,2]
[365363006,1749618654448,-460.0,0.00016931,2]
[365363007,1749618654456,-473.55,0.00016931,2]
[365363008,1749618654465,-490.0,0.00016931,2]
[365363009,1749618654474,-490.0,0.00016931,2]
[365363010,1749618654483,-431.29247381,0.00016931,2]
[365363011,1749618654492,-490.0,0.00016931,2]
[365363012,1749618654501,-490.0,0.00016931,2]
[365363013,1749618654510,-490.0,0.00016931,2]
[365363014,1749618654520,-544.30687753,0.00016931,2]
[365363015,1749618654528,-419.96611995,0.00016931,2]
[365363016,1749618654539,-384.26671489,0.00016931,2]
[365363017,1749618654549,-481.16749717,0.00016931,2]
[365363018,1749618654558,-447.32017754,0.00016931,2]
[365363019,1749618654567,-490.0,0.00016931,2]
[365363020,1749618654576,-365.36028994,0.00016931,2]
[365363021,1749618654585,-426.10754508,0.00016931,2]
[365363022,1749618654594,-490.0,0.00016931,2]
[365363023,1749618654742,-188.96264318,0.00016931,2]
[365363024,1749618654753,-509.74,0.00016931,2]
[365363025,1749618654764,-482.08042917,0.00016931,2]
[365363026,1749618654773,-490.0,0.00016931,2]
[365363027,1749618654782,-499.01260724,0.00016931,2]
[365363028,1749618654791,-430.39080268,0.00016931,2]
[365363029,1749618654800,-386.83727468,0.00016931,2]
[365363030,1749618654810,-480.0,0.00016931,2]
[365363031,1749618654819,-490.0,0.00016931,2]
[365363032,1749618654829,-490.0,0.00016931,2]
[365363033,1749618654838,-490.0,0.00016931,2]
[365363034,1749618654847,-498.08,0.00016931,2]
[365363035,1749618654856,-490.0,0.00016931,2]
[365363036,1749618654866,-480.0,0.00016931,2]
[365363037,1749618654875,-490.0,0.00016931,2]
[365363038,1749618654885,-229.98650563,0.00016931,2]
[365363039,1749618654895,-490.0,0.00016931,2]
[365363040,1749618654904,-490.0,0.00016931,2]
[365363041,1749618654914,-509.95029127,0.00016931,2]
[365363042,1749618654923,-460.0,0.00016931,2]
[365363043,1749618654933,-490.0,0.00016931,2]
[365363044,1749618654943,-490.0,0.00016931,2]
[365363045,1749618654952,-490.0,0.00016931,2]
[365363046,1749618654961,-490.0,0.00016931,2]
[365363047,1749618654971,-490.0,0.00016931,2]
[365363048,1749618654980,-490.0,0.00016931,2]
[365363049,1749618654989,-490.0,0.00016931,2]
[365363050,1749618654999,-490.0,0.00016931,2]
[365363051,1749618655012,-490.0,0.00016931,2]
[365363052,1749618655021,-342.50901399,0.00016931,2]
[365363053,1749618655030,-490.0,0.00016931,2]
[365363054,1749618655039,-490.0,0.00016931,2]
[365363055,1749618655048,-490.0,0.00016931,2]
[365363056,1749618655057,-490.0,0.00016931,2]
[365363057,1749618655067,-490.0,0.00016931,2]
[365363058,1749618655076,-490.0,0.00016931,2]
[365363059,1749618655085,-490.0,0.00016931,2]
[365363060,1749618655095,-490.0,0.00016931,2]
[365363061,1749618655105,-490.0,0.00016931,2]
[365363062,1749618655116,-311.25353419,0.00016931,2]
[365363063,1749618655125,-490.0,0.00016931,2]
[365363064,1749618655135,-816.77,0.00016931,2]
[365363065,1749618655145,-490.0,0.00016931,2]
[365363066,1749618655155,-490.0,0.00016931,2]
[365363067,1749618655163,-490.0,0.00016931,2]
[365363068,1749618655173,-490.0,0.00016931,2]
[365363069,1749618655186,-490.0,0.00016931,2]
[365363070,1749618655195,-490.0,0.00016931,2]
[365363071,1749618655205,-490.0,0.00016931,2]
[365363072,1749618655214,-490.0,0.00016931,2]
[365363073,1749618655223,-490.0,0.00016931,2]
[365363074,1749618655232,-490.0,0.00016931,2]
[365363075,1749618655241,-490.0,0.00016931,2]
[365363076,1749618655253,-490.0,0.00016931,2]
[365363077,1749618655262,-490.0,0.00016931,2]
[365363078,1749618655273,-490.0,0.00016931,2]
[365363079,1749618655282,-490.0,0.00016931,2]
[365363080,1749618655292,-490.0,0.00016931,2]
[365363081,1749618655301,-490.0,0.00016931,2]
[365363082,1749618655311,-490.0,0.00016931,2]
[365363083,1749618655320,-339.97280947,0.00016931,2]
[365363084,1749618655329,-480.0,0.00016931,2]
[365363085,1749618655339,-486.7874888,0.00016931,2]
[365363086,1749618655348,-490.0,0.00016931,2]
[365363087,1749618655357,-490.0,0.00016931,2]
[365363088,1749618655367,-490.0,0.00016931,2]
[365363089,1749618655377,-490.0,0.00016931,2]
[365363090,1749618655387,-490.0,0.00016931,2]
[365363091,1749618655396,-322.07759457,0.00016931,2]
[365363092,1749618655406,-490.0,0.00016931,2]
[365363093,1749618655415,-490.0,0.00016931,2]
[365363094,1749618655425,-490.0,0.00016931,2]
[365363095,1749618655435,-490.0,0.00016931,2]
[365363096,1749618655446,-490.0,0.00016931,2]
[365363097,1749618655456,-470.0,0.00016931,2]
[365363098,1749618655465,-490.0,0.00016931,2]
[365363099,1749618655474,-470.0,0.00016931,2]
[365363100,1749618655484,-490.0,0.00016931,2]
[365363101,1749618655494,-490.0,0.00016931,2]
[365363102,1749618655504,-527.11209013,0.00016931,2]
[365363103,1749618655514,-386.6,0.00016931,2]
[365363104,1749618655523,-490.0,0.00016931,2]
[365363105,1749618655532,-349.62644973,0.00016931,2]
[365363106,1749618655542,-490.0,0.00016931,2]
[365363107,1749618655551,-490.0,0.00016931,2]
[365363108,1749618655563,-490.0,0.00016931,2]
[365363109,1749618655572,-490.0,0.00016931,2]
[365363110,1749618655581,-490.0,0.00016931,2]
[365363111,1749618655592,-490.0,0.00016931,2]
[365363112,1749618655602,-197.29182454,0.00016931,2]
[365363113,1749618655611,-484.338543,0.00016931,2]
[365363114,1749618655621,-490.0,0.00016931,2]
[365363115,1749618655631,-490.0,0.00016931,2]
[365363116,1749618655640,-490.0,0.00016931,2]
[365363117,1749618655649,-303.83356663,0.00016931,2]
[365363118,1749618655660,-463.18952859,0.00016931,2]
[365363119,1749618655669,-490.0,0.00016931,2]
[365363120,1749618655679,-490.0,0.00016931,2]
[365363121,1749618655688,-473.39137707,0.00016931,2]
[365363122,1749618655697,-490.0,0.00016931,2]
[365363123,1749618655707,-474.29884663,0.00016931,2]
[365363124,1749618655716,-490.0,0.00016931,2]
[365363125,1749618655726,-490.0,0.00016931,2]
[365363126,1749618655735,-490.0,0.00016931,2]
[365363127,1749618655745,-490.0,0.00016931,2]
[365363128,1749618655755,-490.0,0.00016931,2]
[365363129,1749618655764,-490.0,0.00016931,2]
[365363130,1749618655774,-473.96,0.00016931,2]
[365363131,1749618655783,-490.0,0.00016931,2]
[365363132,1749618655793,-490.0,0.00016931,2]
[365363133,1749618655803,-490.0,0.00016931,2]
[365363134,1749618655813,-490.0,0.00016931,2]
[365363135,1749618655823,-350.68164492,0.00016931,2]
[365363136,1749618655832,-490.0,0.00016931,2]
[365363137,1749618655842,-490.0,0.00016931,2]
[365363138,1749618655851,-259.34281122,0.00016931,2]
[365363139,1749618655862,-490.0,0.00016931,2]
[365363140,1749618655871,-490.0,0.00016931,2]
[365363141,1749618655882,-490.0,0.00016931,2]
[365363142,1749618655892,-375.08096029,0.00016931,2]
[365363143,1749618655901,-229.140747,0.00016931,2]
[365363144,1749618655911,-5120.11,0.00016931,2]
[365363145,1749618655920,-490.0,0.00016931,2]
[365363146,1749618655929,-490.0,0.00016931,2]
[365363147,1749618655939,-490.0,0.00016931,2]
[365363148,1749618655948,-490.0,0.00016931,2]
[365363149,1749618655957,-490.0,0.00016931,2]
[365363150,1749618655967,-490.0,0.00016931,2]
[365363151,1749618655976,-498.14,0.00016931,2]
[365363152,1749618655986,-490.0,0.00016931,2]
[365363153,1749618655995,-416.37580811,0.00016931,2]
[365363154,1749618656005,-490.0,0.00016931,2]
[365363155,1749618656015,-490.0,0.00016931,2]
[365363156,1749618656024,-490.0,0.00016931,2]
[365363157,1749618656034,-490.0,0.00016931,2]
[365363158,1749618656043,-490.0,0.00016931,2]
[365363159,1749618656053,-578.26,0.00016931,2]
[365363160,1749618656062,-473.99869211,0.00016931,2]
[365363161,1749618656071,-563.3472589,0.00016931,2]
[365363162,1749618656081,-490.0,0.00016931,2]
[365363163,1749618656091,-490.0,0.00016931,2]
[365363164,1749618656100,-442.74467655,0.00016931,2]
[365363165,1749618656109,-490.0,0.00016931,2]
[365363166,1749618656119,-490.0,0.00016931,2]
[365363167,1749618656128,-490.0,0.00016931,2]
[365363168,1749618656138,-490.0,0.00016931,2]
[365363169,1749618656147,-1532.14,0.00016931,2]
[365363170,1749618656156,-284.89,0.00016931,2]
[365363171,1749618656166,-490.0,0.00016931,2]
[365363172,1749618656176,-490.0,0.00016931,2]
[365363173,1749618656190,-398.70342694,0.00016931,2]
[365363174,1749618656200,-490.0,0.00016931,2]
[365363175,1749618656210,-490.0,0.00016931,2]
[365363176,1749618656219,-490.0,0.00016931,2]
[365363177,1749618656228,-456.32767154,0.00016931,2]
[365363178,1749618656238,-490.0,0.00016931,2]
[365363179,1749618656250,-490.0,0.00016931,2]
[365363180,1749618656260,-490.0,0.00016931,2]
[365363181,1749618656270,-490.0,0.00016931,2]
[365363182,1749618656281,-490.0,0.00016931,2]
[365363183,1749618656290,-380.99951639,0.00016931,2]
[365363184,1749618656300,-480.0,0.00016931,2]
[365363185,1749618656309,-150.0,0.00016934,2]
[365363186,1749618656318,-151.0,0.00016999,2]
[365363187,1749618656329,-639.23661763,0.00017011,2]
[365363188,1749618656338,-500.0,0.00017011,2]
[365363189,1749618656348,-500.0,0.00017011,2]
[365363190,1749618656358,-500.0,0.00017011,2]
[365363191,1749618656367,-17436.36583786,0.00017012,2]
[365363192,1749618656377,-1032.49131925,0.00017021,2]
[365363193,1749618656386,-507.48979399,0.00017021,2]
[365363194,1749618656395,-1000.0,0.00017021,2]
[365363195,1749618656405,-500.0,0.00017021,2]
[365363196,1749618656414,-500.0,0.00017021,2]
[365363197,1749618656424,-201.93985216,0.00017021,2]
[365363198,1749618656433,-506.98135913,0.00017021,2]
[365363199,1749618656443,-833.29909032,0.00017043,2]
[365363200,1749618656452,-12454.11207991,0.00017052,2]
[365363201,1749618656462,-500.0,0.00017094,2]
[365363202,1749618656471,-490.0,0.00017095,2]
[365363203,1749618656480,-490.0,0.00017095,2]
[365363204,1749618656490,-430.0,0.00017095,2]
[365363205,1749618656499,-490.0,0.00017095,2]
[365363206,1749618656509,-490.0,0.00017095,2]
[365363207,1749618656519,-490.0,0.00017095,2]
[365363208,1749618656528,-361.48225036,0.00017095,2]
[365363209,1749618656538,-490.0,0.00017095,2]
[365363210,1749618656547,-516.27292348,0.00017095,2]
[365363211,1749618656556,-490.0,0.00017095,2]
[365363212,1749618656565,-490.0,0.00017095,2]
[365363213,1749618656575,-480.0,0.00017095,2]
[365363214,1749618656584,-450.09023218,0.00017095,2]
[365363215,1749618656593,-490.0,0.00017095,2]
[365363216,1749618656602,-329.54955283,0.00017095,2]
[365363217,1749618656612,-460.0,0.00017095,2]
[365363218,1749618656621,-296.75793499,0.00017095,2]
[365363219,1749618656631,-490.0,0.00017095,2]
[365363220,1749618656640,-523.07,0.00017095,2]
[365363221,1749618656649,-490.0,0.00017095,2]
[365363222,1749618656659,-490.0,0.00017095,2]
[365363223,1749618656668,-604.10311721,0.00017095,2]
[365363224,1749618656678,-348.60540393,0.00017095,2]
[365363225,1749618656688,-455.76796367,0.00017095,2]
[365363226,1749618656698,-450.0,0.00017095,2]
[365363227,1749618656707,-265.00858746,0.00017095,2]
[365363228,1749618656717,-490.0,0.00017095,2]
[365363229,1749618656726,-490.0,0.00017095,2]
[365363230,1749618656735,-480.0,0.00017095,2]
[365363231,1749618656744,-490.0,0.00017095,2]
[365363232,1749618656753,-490.0,0.00017095,2]
[365363233,1749618656762,-304.83227495,0.00017095,2]
[365363234,1749618656771,-450.0,0.00017095,2]
[365363235,1749618656780,-439.91494795,0.00017095,2]
[365363236,1749618656790,-490.0,0.00017095,2]
[365363237,1749618656799,-480.0,0.00017095,2]
[365363238,1749618656808,-273.22448151,0.00017095,2]
[365363239,1749618656817,-490.0,0.00017095,2]
[365363240,1749618656827,-427.38044901,0.00017095,2]
[365363241,1749618656836,-480.0,0.00017095,2]
[365363242,1749618656846,-480.0,0.00017095,2]
[365363243,1749618656855,-185.6,0.00017095,2]
[365363244,1749618656864,-238.40862338,0.00017095,2]
[365363245,1749618656874,-490.0,0.00017095,2]
[365363246,1749618656884,-490.0,0.00017095,2]